[Event "Late-Titled-Tuesday-Blitz-April-02-2024"]
[Site "Chess.com"]
[Date "2024.04.02"]
[Round "11"]
[White "ural58"]
[Black "Hirna2005"]
[Result "1-0"]
[WhiteElo "2482"]
[BlackElo "2340"]
[TimeControl "180+1"]
[EndTime "16:05:18 PDT"]
[Termination "ural58 won by resignation"]

1. e4 {[%clk 0:01:32.7]} 1... g6 {[%clk 0:03:00.9]} 2. d4 {[%clk 0:01:31.7]}
2... Bg7 {[%clk 0:03:01.4]} 3. Nc3 {[%clk 0:01:31.4]} 3... d6 {[%clk 0:03:01.6]}
4. h4 {[%clk 0:01:28.3]} 4... h5 {[%clk 0:03:00.1]} 5. Nf3 {[%clk 0:01:27.1]}
5... Bg4 {[%clk 0:02:59.2]} 6. Be2 {[%clk 0:01:27]} 6... Nc6 {[%clk 0:02:58.7]}
7. Be3 {[%clk 0:01:26.4]} 7... e5 {[%clk 0:02:58]} 8. d5 {[%clk 0:01:26.3]} 8...
Nce7 {[%clk 0:02:58]} 9. Nd2 {[%clk 0:01:25]} 9... Bxe2 {[%clk 0:02:54.7]} 10.
Qxe2 {[%clk 0:01:25.5]} 10... Nf6 {[%clk 0:02:54.9]} 11. f3 {[%clk 0:01:25.1]}
11... a6 {[%clk 0:02:53.4]} 12. a4 {[%clk 0:01:24.2]} 12... Qd7 {[%clk
0:02:48.9]} 13. a5 {[%clk 0:01:23.8]} 13... Bh6 {[%clk 0:02:41.8]} 14. Bxh6
{[%clk 0:01:19.4]} 14... Rxh6 {[%clk 0:02:41.8]} 15. Nc4 {[%clk 0:01:18.3]}
15... Rh8 {[%clk 0:02:39.4]} 16. b4 {[%clk 0:01:15.9]} 16... Kf8 {[%clk
0:02:29.4]} 17. Qe3 {[%clk 0:01:15.4]} 17... Kg7 {[%clk 0:02:28.4]} 18. Kd2
{[%clk 0:01:10.2]} 18... Ne8 {[%clk 0:02:17.8]} 19. Rag1 {[%clk 0:01:09.5]}
19... f5 {[%clk 0:02:17.2]} 20. f4 {[%clk 0:01:02.7]} 20... exf4 {[%clk
0:02:09.5]} 21. Qxf4 {[%clk 0:01:02.6]} 21... Nf6 {[%clk 0:02:08.6]} 22. Ne3
{[%clk 0:00:50.7]} 22... fxe4 {[%clk 0:01:58.9]} 23. Nxe4 {[%clk 0:00:50.3]}
23... Nfxd5 {[%clk 0:01:51.9]} 24. Nxd5 {[%clk 0:00:45.2]} 24... Nxd5 {[%clk
0:01:51.7]} 25. Qg5 {[%clk 0:00:45.7]} 25... Qf5 {[%clk 0:01:44.9]} 26. Qxf5
{[%clk 0:00:40.8]} 26... gxf5 {[%clk 0:01:44.6]} 27. Ng5 {[%clk 0:00:41.3]}
27... Nxb4 {[%clk 0:01:42.5]} 28. Re1 {[%clk 0:00:37.6]} 28... Nc6 {[%clk
0:01:28.4]} 29. Ne6+ {[%clk 0:00:36.8]} 29... Kf6 {[%clk 0:01:28.7]} 30. Nxc7
{[%clk 0:00:36.9]} 30... Rac8 {[%clk 0:01:24.3]} 31. Nd5+ {[%clk 0:00:36.7]}
31... Kf7 {[%clk 0:01:24.2]} 32. Rhf1 {[%clk 0:00:34.9]} 32... Ne5 {[%clk
0:01:18.6]} 33. Rxf5+ {[%clk 0:00:32.8]} 33... Kg6 {[%clk 0:01:11.9]} 34. Rg5+
{[%clk 0:00:32]} 34... Kh6 {[%clk 0:01:11.3]} 35. Rf1 {[%clk 0:00:30.3]} 35...
Rhf8 {[%clk 0:01:02.6]} 36. Rxf8 {[%clk 0:00:29.8]} 36... Rxf8 {[%clk
0:01:02.1]} 37. Ne3 {[%clk 0:00:29.7]} 37... Rf4 {[%clk 0:00:45.4]} 38. Nf5+
{[%clk 0:00:24.4]} 38... Kh7 {[%clk 0:00:44.9]} 39. Nxd6 {[%clk 0:00:24.1]}
39... Rxh4 {[%clk 0:00:41.8]} 40. Rxe5 {[%clk 0:00:23.6]} 40... Rd4+ {[%clk
0:00:40.9]} 41. Ke3 {[%clk 0:00:21]} 41... Rxd6 {[%clk 0:00:40.9]} 42. Rxh5+
{[%clk 0:00:21.4]} 42... Kg6 {[%clk 0:00:40.8]} 43. Rc5 {[%clk 0:00:19.9]} 43...
Re6+ {[%clk 0:00:37.4]} 44. Kd3 {[%clk 0:00:18.1]} 44... Rd6+ {[%clk 0:00:37.1]}
45. Kc3 {[%clk 0:00:17.8]} 45... Rd7 {[%clk 0:00:34.1]} 46. g4 {[%clk
0:00:17.6]} 46... Kf6 {[%clk 0:00:33.8]} 47. Kc4 {[%clk 0:00:17.5]} 47... Rd2
{[%clk 0:00:32.9]} 48. c3 {[%clk 0:00:17.2]} 48... Rb2 {[%clk 0:00:31.1]} 49.
Rd5 {[%clk 0:00:16.3]} 49... Kg6 {[%clk 0:00:30.8]} 50. Kc5 {[%clk 0:00:14.6]}
50... Rb3 {[%clk 0:00:27.5]} 51. c4 {[%clk 0:00:14.7]} 51... Rb2 {[%clk
0:00:23.1]} 52. Kd6 {[%clk 0:00:14.6]} 52... Rc2 {[%clk 0:00:20.2]} 53. Rc5
{[%clk 0:00:14.6]} 53... Rg2 {[%clk 0:00:18.9]} 54. Kc7 {[%clk 0:00:14.6]} 54...
Rb2 {[%clk 0:00:17.8]} 55. Kb8 {[%clk 0:00:14.6]} 55... Rb4 {[%clk 0:00:16.8]}
56. Ka7 {[%clk 0:00:14.3]} 56... Kf6 {[%clk 0:00:15.3]} 57. Rc7 {[%clk
0:00:13.5]} 57... Kg5 {[%clk 0:00:14.1]} 58. Rxb7 {[%clk 0:00:13.4]} 58... Rxc4
{[%clk 0:00:14.5]} 59. Kxa6 {[%clk 0:00:13.7]} 59... Kxg4 {[%clk 0:00:14.6]} 60.
Rf7 {[%clk 0:00:13.5]} 60... Kg5 {[%clk 0:00:13]} 61. Kb7 {[%clk 0:00:13]} 61...
Kg6 {[%clk 0:00:12.9]} 62. Rf1 {[%clk 0:00:12.2]} 62... Rb4+ {[%clk 0:00:12.5]}
63. Kc6 {[%clk 0:00:11.8]} 63... Ra4 {[%clk 0:00:11.9]} 64. Kb5 {[%clk
0:00:11.8]} 64... Ra2 {[%clk 0:00:11.6]} 65. a6 {[%clk 0:00:12.2]} 65... Kg5
{[%clk 0:00:10.9]} 66. Rb1 {[%clk 0:00:09.9]} 66... Kf6 {[%clk 0:00:09.1]} 67.
Kb6 {[%clk 0:00:10.5]} 67... Ke7 {[%clk 0:00:09.2]} 68. a7 {[%clk 0:00:10.4]}
68... Kd7 {[%clk 0:00:09.4]} 69. Kb7 {[%clk 0:00:10.9]} 69... Kd6 {[%clk
0:00:08.2]} 70. a8=Q {[%clk 0:00:10.9]} 1-0

[Event "Late-Titled-Tuesday-Blitz-April-02-2024"]
[Site "Chess.com"]
[Date "2024.04.02"]
[Round "11"]
[White "maracayo"]
[Black "Resignify"]
[Result "1-0"]
[WhiteElo "2365"]
[BlackElo "2238"]
[TimeControl "180+1"]
[EndTime "16:05:25 PDT"]
[Termination "maracayo won on time"]

1. d4 {[%clk 0:03:00.9]} 1... Nf6 {[%clk 0:02:59.5]} 2. Nf3 {[%clk 0:02:59.9]}
2... g6 {[%clk 0:02:59.7]} 3. c4 {[%clk 0:02:58.4]} 3... Bg7 {[%clk 0:02:59.9]}
4. Nc3 {[%clk 0:02:57.9]} 4... d6 {[%clk 0:03:00.1]} 5. g3 {[%clk 0:02:57.7]}
5... O-O {[%clk 0:03:00.1]} 6. Bg2 {[%clk 0:02:57.6]} 6... Nbd7 {[%clk
0:03:00.4]} 7. O-O {[%clk 0:02:57.2]} 7... e5 {[%clk 0:03:00.4]} 8. e4 {[%clk
0:02:43]} 8... c6 {[%clk 0:02:57.8]} 9. dxe5 {[%clk 0:02:39.3]} 9... dxe5 {[%clk
0:02:57.6]} 10. Qd6 {[%clk 0:02:36.5]} 10... Re8 {[%clk 0:02:54.6]} 11. Bg5
{[%clk 0:02:34]} 11... h6 {[%clk 0:02:43.4]} 12. Be3 {[%clk 0:02:24.1]} 12...
Bf8 {[%clk 0:02:43.4]} 13. Qd2 {[%clk 0:02:21.2]} 13... Kh7 {[%clk 0:02:42.7]}
14. Rad1 {[%clk 0:02:15.5]} 14... Ng4 {[%clk 0:02:38.6]} 15. Bh3 {[%clk
0:01:46.9]} 15... Ngf6 {[%clk 0:01:51]} 16. Qc2 {[%clk 0:01:05.8]} 16... Qe7
{[%clk 0:01:47.9]} 17. a3 {[%clk 0:00:58.5]} 17... a5 {[%clk 0:01:47.1]} 18. Na4
{[%clk 0:00:52.7]} 18... Bg7 {[%clk 0:01:36.4]} 19. c5 {[%clk 0:00:40.4]} 19...
Nf8 {[%clk 0:01:24.4]} 20. Bxc8 {[%clk 0:00:33.8]} 20... Raxc8 {[%clk
0:01:25.3]} 21. Rd6 {[%clk 0:00:30.8]} 21... Ng4 {[%clk 0:01:11.4]} 22. Bc1
{[%clk 0:00:23]} 22... b5 {[%clk 0:00:44.5]} 23. Nb6 {[%clk 0:00:21.7]} 23...
Rc7 {[%clk 0:00:42.8]} 24. h3 {[%clk 0:00:21.3]} 24... Nf6 {[%clk 0:00:41.5]}
25. Rfd1 {[%clk 0:00:20.5]} 25... N6d7 {[%clk 0:00:32.3]} 26. Nxd7 {[%clk
0:00:15.9]} 26... Nxd7 {[%clk 0:00:33]} 27. b4 {[%clk 0:00:15]} 27... axb4
{[%clk 0:00:32.5]} 28. axb4 {[%clk 0:00:15.6]} 28... Nf8 {[%clk 0:00:30.9]} 29.
Bb2 {[%clk 0:00:14.8]} 29... f6 {[%clk 0:00:25]} 30. Qd3 {[%clk 0:00:13.8]}
30... Ne6 {[%clk 0:00:22.6]} 31. Rd7 {[%clk 0:00:13.2]} 31... Rxd7 {[%clk
0:00:22.6]} 32. Qxd7 {[%clk 0:00:13.8]} 32... Qxd7 {[%clk 0:00:17.6]} 33. Rxd7
{[%clk 0:00:14.7]} 33... Kg8 {[%clk 0:00:11.7]} 34. Rd6 {[%clk 0:00:14.1]} 34...
Nd8 {[%clk 0:00:08.4]} 35. Rd7 {[%clk 0:00:13.7]} 35... Ne6 {[%clk 0:00:07.2]}
36. Rd6 {[%clk 0:00:12.6]} 36... Nd8 {[%clk 0:00:07.4]} 37. h4 {[%clk
0:00:12.3]} 37... Kf7 {[%clk 0:00:06.1]} 38. h5 {[%clk 0:00:11.6]} 38... g5
{[%clk 0:00:05.5]} 39. Rd7+ {[%clk 0:00:10.6]} 39... Kg8 {[%clk 0:00:04.2]} 40.
Rc7 {[%clk 0:00:10.5]} 40... Bf8 {[%clk 0:00:02.6]} 41. Nh2 {[%clk 0:00:10.3]}
41... Re7 {[%clk 0:00:02.8]} 42. Rc8 {[%clk 0:00:09.7]} 42... Rd7 {[%clk
0:00:03.2]} 43. Ng4 {[%clk 0:00:09.7]} 43... Kg7 {[%clk 0:00:03.9]} 44. Nxe5
{[%clk 0:00:07.6]} 44... fxe5 {[%clk 0:00:03.4]} 45. Bxe5+ {[%clk 0:00:08.5]}
45... Kf7 {[%clk 0:00:04.3]} 46. f4 {[%clk 0:00:08.2]} 46... gxf4 {[%clk
0:00:03.9]} 47. gxf4 {[%clk 0:00:09.1]} 47... Be7 {[%clk 0:00:04.1]} 48. f5
{[%clk 0:00:08.6]} 48... Rd2 {[%clk 0:00:03.2]} 49. Rc7 {[%clk 0:00:06.4]} 49...
Ke8 {[%clk 0:00:01.7]} 50. f6 {[%clk 0:00:06.2]} 50... Bf8 {[%clk 0:00:01.2]}
51. Bf4 {[%clk 0:00:04.1]} 51... Re2 {[%clk 0:00:01.2]} 52. e5 {[%clk
0:00:03.9]} 52... Ne6 {[%clk 0:00:01.3]} 53. Rc8+ {[%clk 0:00:03.9]} 53... Kf7
{[%clk 0:00:01.2]} 54. Bg3 {[%clk 0:00:03.9]} 1-0

[Event "Late-Titled-Tuesday-Blitz-April-02-2024"]
[Site "Chess.com"]
[Date "2024.04.02"]
[Round "11"]
[White "jaskol95"]
[Black "Gabcur"]
[Result "1/2-1/2"]
[WhiteElo "2534"]
[BlackElo "2365"]
[TimeControl "180+1"]
[EndTime "16:05:26 PDT"]
[Termination "Game drawn by repetition"]

1. e4 {[%clk 0:03:00.9]} 1... e6 {[%clk 0:02:59.8]} 2. d4 {[%clk 0:03:00.1]}
2... d5 {[%clk 0:02:59.9]} 3. Nc3 {[%clk 0:03:01]} 3... Bb4 {[%clk 0:02:59.2]}
4. e5 {[%clk 0:02:59.7]} 4... Ne7 {[%clk 0:02:58.8]} 5. a3 {[%clk 0:03:00]} 5...
Bxc3+ {[%clk 0:02:58.9]} 6. bxc3 {[%clk 0:03:00.9]} 6... c5 {[%clk 0:02:59.2]}
7. Qg4 {[%clk 0:03:00.8]} 7... Kf8 {[%clk 0:02:59.5]} 8. h4 {[%clk 0:02:56.6]}
8... Qa5 {[%clk 0:02:59.1]} 9. Bd2 {[%clk 0:02:56.8]} 9... Qa4 {[%clk
0:02:59.4]} 10. Qd1 {[%clk 0:02:54.5]} 10... b6 {[%clk 0:02:51.8]} 11. Nf3
{[%clk 0:02:54]} 11... Ba6 {[%clk 0:02:51.6]} 12. Bd3 {[%clk 0:02:51.3]} 12...
Bxd3 {[%clk 0:02:48.7]} 13. cxd3 {[%clk 0:02:52.2]} 13... Qxd1+ {[%clk
0:02:48.6]} 14. Kxd1 {[%clk 0:02:50.4]} 14... Nd7 {[%clk 0:02:46.1]} 15. Ke2
{[%clk 0:02:48.9]} 15... Rc8 {[%clk 0:02:44.6]} 16. a4 {[%clk 0:02:48.4]} 16...
Nc6 {[%clk 0:02:43.2]} 17. Rhb1 {[%clk 0:02:45]} 17... h6 {[%clk 0:02:16.2]} 18.
Bc1 {[%clk 0:02:28.6]} 18... Na5 {[%clk 0:02:07]} 19. dxc5 {[%clk 0:02:27.2]}
19... Nxc5 {[%clk 0:02:03]} 20. Ba3 {[%clk 0:02:27.5]} 20... Ke8 {[%clk
0:02:01.7]} 21. Bxc5 {[%clk 0:02:27.2]} 21... Rxc5 {[%clk 0:01:55.9]} 22. Kd2
{[%clk 0:02:27.8]} 22... Kd7 {[%clk 0:01:40.4]} 23. Rb4 {[%clk 0:02:21.5]} 23...
Rhc8 {[%clk 0:01:34.2]} 24. Ra3 {[%clk 0:02:18.2]} 24... Nc6 {[%clk 0:01:25.9]}
25. Rg4 {[%clk 0:02:17.3]} 25... g6 {[%clk 0:01:21.3]} 26. d4 {[%clk 0:02:17.5]}
26... Ra5 {[%clk 0:01:08.4]} 27. h5 {[%clk 0:02:15.2]} 27... Ne7 {[%clk
0:01:07]} 28. hxg6 {[%clk 0:02:14.6]} 28... fxg6 {[%clk 0:01:06.8]} 29. Ne1
{[%clk 0:02:12.6]} 29... Rc4 {[%clk 0:01:02.1]} 30. Rh4 {[%clk 0:02:08.9]} 30...
h5 {[%clk 0:00:57]} 31. Nc2 {[%clk 0:02:03.1]} 31... Rcxa4 {[%clk 0:00:54.7]}
32. Rxa4 {[%clk 0:02:03.3]} 32... Rxa4 {[%clk 0:00:54.8]} 33. g4 {[%clk
0:02:02.1]} 33... hxg4 {[%clk 0:00:54]} 34. Rxg4 {[%clk 0:02:01.7]} 34... Rc4
{[%clk 0:00:48.9]} 35. Rh4 {[%clk 0:02:01.1]} 35... a5 {[%clk 0:00:44.5]} 36.
Rh8 {[%clk 0:02:01.7]} 36... Rc8 {[%clk 0:00:43.6]} 37. Rh1 {[%clk 0:02:01.4]}
37... Rf8 {[%clk 0:00:39.8]} 38. Ke3 {[%clk 0:02:00.2]} 38... Nf5+ {[%clk
0:00:36]} 39. Ke2 {[%clk 0:02:00.1]} 39... Rc8 {[%clk 0:00:33.3]} 40. Rh7+
{[%clk 0:02:00.1]} 40... Ne7 {[%clk 0:00:33]} 41. Kd3 {[%clk 0:02:00.5]} 41...
a4 {[%clk 0:00:31.8]} 42. Nb4 {[%clk 0:01:59.8]} 42... a3 {[%clk 0:00:28.2]} 43.
Rh1 {[%clk 0:01:59.2]} 43... Rf8 {[%clk 0:00:25.4]} 44. Ke2 {[%clk 0:01:59.1]}
44... Nc6 {[%clk 0:00:22]} 45. Nc2 {[%clk 0:01:47.9]} 45... Ra8 {[%clk
0:00:16.6]} 46. Ra1 {[%clk 0:01:45.9]} 46... a2 {[%clk 0:00:16.9]} 47. Kd3
{[%clk 0:01:44.6]} 47... Ra4 {[%clk 0:00:15.6]} 48. Kd2 {[%clk 0:01:42.7]} 48...
b5 {[%clk 0:00:14.4]} 49. Kc1 {[%clk 0:01:41.6]} 49... b4 {[%clk 0:00:14.7]} 50.
Kb2 {[%clk 0:01:35.4]} 50... bxc3+ {[%clk 0:00:13.4]} 51. Kxc3 {[%clk
0:01:36.3]} 51... Rc4+ {[%clk 0:00:12.8]} 52. Kb3 {[%clk 0:01:35.4]} 52... Nxd4+
{[%clk 0:00:12.7]} 53. Nxd4 {[%clk 0:01:36.2]} 53... Rxd4 {[%clk 0:00:12.8]} 54.
Rxa2 {[%clk 0:01:36.9]} 54... Re4 {[%clk 0:00:12.3]} 55. Ra7+ {[%clk 0:01:37]}
55... Kc6 {[%clk 0:00:12.1]} 56. Ra6+ {[%clk 0:01:37.6]} 56... Kd7 {[%clk
0:00:12]} 57. Ra7+ {[%clk 0:01:38.4]} 57... Ke8 {[%clk 0:00:12.3]} 58. Rg7
{[%clk 0:01:37.3]} 58... Rxe5 {[%clk 0:00:11.5]} 59. Rxg6 {[%clk 0:01:37.9]}
59... Kd7 {[%clk 0:00:11.8]} 60. Kc3 {[%clk 0:01:37.4]} 60... Kd6 {[%clk
0:00:11.6]} 61. Kd4 {[%clk 0:01:37.6]} 61... Re4+ {[%clk 0:00:11.7]} 62. Kd3
{[%clk 0:01:38.1]} 62... Rf4 {[%clk 0:00:08.9]} 63. Ke3 {[%clk 0:01:37.9]} 63...
Rf5 {[%clk 0:00:08.9]} 64. Rg8 {[%clk 0:01:38.2]} 64... Ke5 {[%clk 0:00:09.1]}
65. Re8 {[%clk 0:01:36.8]} 65... d4+ {[%clk 0:00:08.9]} 66. Ke2 {[%clk
0:01:35.5]} 66... Kd5 {[%clk 0:00:07.6]} 67. f3 {[%clk 0:01:35.1]} 67... e5
{[%clk 0:00:07.1]} 68. Rd8+ {[%clk 0:01:35.6]} 68... Kc4 {[%clk 0:00:06.6]} 69.
Rc8+ {[%clk 0:01:36]} 69... Kd5 {[%clk 0:00:06.9]} 70. Rd8+ {[%clk 0:01:36.5]}
70... Ke6 {[%clk 0:00:07.2]} 71. Re8+ {[%clk 0:01:36.9]} 71... Kf6 {[%clk
0:00:07.2]} 72. Rf8+ {[%clk 0:01:33]} 72... Kg5 {[%clk 0:00:06.8]} 73. Rg8+
{[%clk 0:01:33.7]} 73... Kf6 {[%clk 0:00:05.8]} 74. Rf8+ {[%clk 0:01:34.1]}
74... Ke6 {[%clk 0:00:06.1]} 75. Rh8 {[%clk 0:01:33.8]} 75... Rf6 {[%clk
0:00:05.2]} 76. Rh3 {[%clk 0:01:32.4]} 76... Kd5 {[%clk 0:00:04.5]} 77. Kd3
{[%clk 0:01:33.1]} 77... Ra6 {[%clk 0:00:04.3]} 78. Rh8 {[%clk 0:01:32.6]} 78...
Ra3+ {[%clk 0:00:04.8]} 79. Ke2 {[%clk 0:01:33.3]} 79... Re3+ {[%clk 0:00:04.4]}
80. Kf2 {[%clk 0:01:33.8]} 80... Kc4 {[%clk 0:00:04.7]} 81. Ra8 {[%clk
0:01:31.5]} 81... Rb3 {[%clk 0:00:04.2]} 82. Ra4+ {[%clk 0:01:31.2]} 82... Kd3
{[%clk 0:00:04]} 83. Ra2 {[%clk 0:01:31.4]} 83... Rc3 {[%clk 0:00:03.8]} 84. Ra5
{[%clk 0:01:29.9]} 84... e4 {[%clk 0:00:03.4]} 85. fxe4 {[%clk 0:01:27.5]} 85...
Kxe4 {[%clk 0:00:03.5]} 86. Ke2 {[%clk 0:01:28.1]} 86... Rc2+ {[%clk 0:00:03.3]}
87. Kd1 {[%clk 0:01:28.6]} 87... Rh2 {[%clk 0:00:03.3]} 88. Ra3 {[%clk
0:01:27.8]} 88... Rf2 {[%clk 0:00:02.6]} 89. Rb3 {[%clk 0:01:26.7]} 89... Rg2
{[%clk 0:00:02.6]} 90. Ra3 {[%clk 0:01:26.3]} 90... Rf2 {[%clk 0:00:03]} 91. Rg3
{[%clk 0:01:26.6]} 91... Rf3 {[%clk 0:00:03.3]} 92. Rg8 {[%clk 0:01:26.4]} 92...
Kd3 {[%clk 0:00:03.2]} 93. Ke1 {[%clk 0:01:23.1]} 93... Rh3 {[%clk 0:00:03.3]}
94. Rg1 {[%clk 0:01:20.1]} 94... Rh2 {[%clk 0:00:03.3]} 95. Kd1 {[%clk
0:01:19.9]} 95... Ra2 {[%clk 0:00:02.7]} 96. Rg3+ {[%clk 0:01:19.7]} 96... Kc4
{[%clk 0:00:02.9]} 97. Rh3 {[%clk 0:01:19.8]} 97... d3 {[%clk 0:00:03.1]} 98.
Rh8 {[%clk 0:01:18.8]} 98... Kc3 {[%clk 0:00:03.5]} 99. Rc8+ {[%clk 0:01:19.1]}
99... Kd4 {[%clk 0:00:03.8]} 100. Rd8+ {[%clk 0:01:20]} 100... Kc3 {[%clk
0:00:04.1]} 101. Rc8+ {[%clk 0:01:20.3]} 101... Kd4 {[%clk 0:00:04.5]} 102. Rd8+
{[%clk 0:01:21]} 102... Kc3 {[%clk 0:00:05]} 103. Rc8+ {[%clk 0:01:21.1]}
1/2-1/2